[Event "Titled Tuesday Blitz May 03 Early 2022"]
[White "Avazkhonov, Alikhon"]
[Black "Quirke, Jeffrey"]
[WhiteFideId "14208504"]
[BlackFideId "2013029"]
[WhiteElo "1739"]
[BlackElo "2069"]
[Result "0-1"]
[Round "06"]
[TimeControl "180+1"]
[Date "2022.05.03"]
[WhiteClock "0:00:01"]
[BlackClock "0:00:14"]

1. e4 {[%clk 0:03:00]}  c6 {[%clk 0:02:59]} 2. Nc3 {[%clk 0:02:59]}  d5 {[%clk 0:02:59]} 3. Nf3 {[%clk 0:03:00]}  dxe4 {[%clk 0:02:59]} 4. Nxe4 {[%clk 0:03:01]}  Nf6 {[%clk 0:02:59]} 5. Qe2 {[%clk 0:03:00]}  Nxe4 {[%clk 0:02:59]} 6. Qxe4 {[%clk 0:03:01]}  Be6 {[%clk 0:02:59]} 7. c4 {[%clk 0:02:39]}  Nd7 {[%clk 0:02:58]} 8. d4 {[%clk 0:02:39]}  Nf6 {[%clk 0:02:56]} 9. Qf4 {[%clk 0:02:24]}  g6 {[%clk 0:02:52]} 10. Ng5 {[%clk 0:02:23]}  Bf5 {[%clk 0:02:34]} 11. Be2 {[%clk 0:01:50]}  Bg7 {[%clk 0:02:29]} 12. O-O {[%clk 0:01:43]}  O-O {[%clk 0:02:26]} 13. Be3 {[%clk 0:01:33]}  a5 {[%clk 0:02:25]} 14. g4 {[%clk 0:01:23]}  Bd7 {[%clk 0:02:18]} 15. Rfd1 {[%clk 0:01:17]}  a4 {[%clk 0:02:13]} 16. Rac1 {[%clk 0:01:14]}  Qa5 {[%clk 0:01:57]} 17. Ne4 {[%clk 0:00:37]}  Nxe4 {[%clk 0:01:43]} 18. Qxe4 {[%clk 0:00:38]}  Rfe8 {[%clk 0:01:25]} 19. d5 {[%clk 0:00:32]}  Bxb2 {[%clk 0:01:14]} 20. Rb1 {[%clk 0:00:30]}  a3 {[%clk 0:01:14]} 21. h4 {[%clk 0:00:03]}  cxd5 {[%clk 0:01:08]} 22. Rxd5 {[%clk 0:00:03]}  Qc7 {[%clk 0:01:05]} 23. h5 {[%clk 0:00:01]}  Bc6 {[%clk 0:00:58]} 24. h6 {[%clk 0:00:02]}  Bxd5 {[%clk 0:00:51]} 25. cxd5 {[%clk 0:00:03]}  Qe5 {[%clk 0:00:47]} 26. Qd3 {[%clk 0:00:03]}  Red8 {[%clk 0:00:39]} 27. Bf3 {[%clk 0:00:03]}  Rac8 {[%clk 0:00:38]} 28. Bb6 {[%clk 0:00:03]}  Rc3 {[%clk 0:00:36]} 29. Be3 {[%clk 0:00:04]}  Rxd3 {[%clk 0:00:35]} 30. Re1 {[%clk 0:00:03]}  Rxe3 {[%clk 0:00:33]} 31. Rxe3 {[%clk 0:00:04]}  Qg5 {[%clk 0:00:22]} 32. Kg2 {[%clk 0:00:04]}  Qxh6 {[%clk 0:00:22]} 33. Rxe7 {[%clk 0:00:04]}  Qg5 {[%clk 0:00:18]} 34. Rxb7 {[%clk 0:00:05]}  Rxd5 {[%clk 0:00:17]} 35. Rb8+ {[%clk 0:00:04]}  Kg7 {[%clk 0:00:17]} 36. Rb3 {[%clk 0:00:02]}  Rd4 {[%clk 0:00:16]} 37. Re3 {[%clk 0:00:01]}  Rxg4+ {[%clk 0:00:16]} 38. Bxg4 {[%clk 0:00:02]}  Qxg4+ {[%clk 0:00:16]} 39. Kf1 {[%clk 0:00:03]}  Qd1+ {[%clk 0:00:15]} 40. Kg2 {[%clk 0:00:04]}  Qb1 {[%clk 0:00:15]} 41. Re2 {[%clk 0:00:02]}  Qxa2 {[%clk 0:00:15]} 42. Rxb2 {[%clk 0:00:02]}  axb2 {[%clk 0:00:14]} 43. Kg3 {[%clk 0:00:01]}  b1=Q {[%clk 0:00:14]} 0-1


[Site "https://www.chess.com"]

[Event "Titled Tuesday Blitz May 03 Early 2022"]
[White "Barria Zuniga, Daniel"]
[Black "Rohith Krishna S"]
[WhiteFideId "3400816"]
[BlackFideId "46617051"]
[WhiteElo "2414"]
[BlackElo "2117"]
[Result "0-1"]
[Round "06"]
[TimeControl "180+1"]
[Date "2022.05.03"]
[WhiteClock "0:00:12"]
[BlackClock "0:01:31"]

1. c4 {[%clk 0:03:00]}  Nf6 {[%clk 0:02:58]} 2. g3 {[%clk 0:02:55]}  g6 {[%clk 0:02:55]} 3. Bg2 {[%clk 0:02:52]}  Bg7 {[%clk 0:02:56]} 4. Nc3 {[%clk 0:02:53]}  O-O {[%clk 0:02:56]} 5. d4 {[%clk 0:02:53]}  c5 {[%clk 0:02:56]} 6. e3 {[%clk 0:02:53]}  cxd4 {[%clk 0:02:55]} 7. exd4 {[%clk 0:02:53]}  Nc6 {[%clk 0:02:55]} 8. Nge2 {[%clk 0:02:49]}  e6 {[%clk 0:02:54]} 9. d5 {[%clk 0:02:48]}  Ne5 {[%clk 0:02:53]} 10. O-O {[%clk 0:02:30]}  Nxc4 {[%clk 0:02:49]} 11. b3 {[%clk 0:02:30]}  Nb6 {[%clk 0:02:49]} 12. Ba3 {[%clk 0:02:27]}  Re8 {[%clk 0:02:42]} 13. d6 {[%clk 0:02:23]}  a6 {[%clk 0:02:42]} 14. Rc1 {[%clk 0:02:23]}  Ng4 {[%clk 0:02:31]} 15. Bc5 {[%clk 0:02:09]}  Ne5 {[%clk 0:02:28]} 16. a4 {[%clk 0:02:06]}  Nc6 {[%clk 0:02:21]} 17. Qd2 {[%clk 0:01:59]}  Rb8 {[%clk 0:02:17]} 18. h4 {[%clk 0:01:41]}  h5 {[%clk 0:02:15]} 19. Ne4 {[%clk 0:01:29]}  Nd5 {[%clk 0:02:10]} 20. Ng5 {[%clk 0:01:25]}  b6 {[%clk 0:02:05]} 21. Ba3 {[%clk 0:01:22]}  Bb7 {[%clk 0:02:02]} 22. f4 {[%clk 0:00:40]}  b5 {[%clk 0:01:53]} 23. Bc5 {[%clk 0:00:36]}  bxa4 {[%clk 0:01:52]} 24. bxa4 {[%clk 0:00:36]}  Ba8 {[%clk 0:01:51]} 25. g4 {[%clk 0:00:27]}  hxg4 {[%clk 0:01:49]} 26. h5 {[%clk 0:00:25]}  gxh5 {[%clk 0:01:37]} 27. f5 {[%clk 0:00:20]}  Rb2 {[%clk 0:01:35]} 28. Qd3 {[%clk 0:00:18]}  Qxg5 {[%clk 0:01:34]} 29. fxe6 {[%clk 0:00:15]}  fxe6 {[%clk 0:01:33]} 30. Ng3 {[%clk 0:00:12]}  Ne5 {[%clk 0:01:31]} 0-1


[Site "https://www.chess.com"]

[Event "Titled Tuesday Blitz May 03 Early 2022"]
[White "Bocharov, Dmitry"]
[Black "Donchenko, Alexander"]
[WhiteFideId "4138716"]
[BlackFideId "24603295"]
[WhiteElo "2541"]
[BlackElo "2539"]
[Result "0-1"]
[Round "06"]
[TimeControl "180+1"]
[Date "2022.05.03"]
[WhiteClock "0:00:07"]
[BlackClock "0:00:04"]

1. d4 {[%clk 0:03:00]}  d5 {[%clk 0:02:59]} 2. c4 {[%clk 0:03:00]}  dxc4 {[%clk 0:03:00]} 3. Nf3 {[%clk 0:02:59]}  a6 {[%clk 0:03:00]} 4. e3 {[%clk 0:02:53]}  e6 {[%clk 0:03:00]} 5. Bxc4 {[%clk 0:02:52]}  c5 {[%clk 0:03:01]} 6. O-O {[%clk 0:02:51]}  Nf6 {[%clk 0:03:02]} 7. Nbd2 {[%clk 0:02:51]}  b6 {[%clk 0:02:57]} 8. e4 {[%clk 0:02:41]}  Bb7 {[%clk 0:02:52]} 9. e5 {[%clk 0:02:40]}  Nfd7 {[%clk 0:02:51]} 10. Re1 {[%clk 0:02:35]}  b5 {[%clk 0:02:47]} 11. Bd3 {[%clk 0:02:29]}  Nc6 {[%clk 0:02:46]} 12. a4 {[%clk 0:02:07]}  c4 {[%clk 0:02:43]} 13. Be4 {[%clk 0:02:03]}  Be7 {[%clk 0:02:38]} 14. d5 {[%clk 0:01:52]}  exd5 {[%clk 0:02:37]} 15. Bxd5 {[%clk 0:01:53]}  Nc5 {[%clk 0:02:28]} 16. Ne4 {[%clk 0:01:39]}  Nd3 {[%clk 0:01:52]} 17. Nd6+ {[%clk 0:01:36]}  Bxd6 {[%clk 0:01:53]} 18. exd6+ {[%clk 0:01:36]}  Nxe1 {[%clk 0:01:53]} 19. Qxe1+ {[%clk 0:01:37]}  Kf8 {[%clk 0:01:54]} 20. Bf4 {[%clk 0:01:35]}  Na5 {[%clk 0:01:45]} 21. Bxb7 {[%clk 0:01:29]}  Nxb7 {[%clk 0:01:46]} 22. axb5 {[%clk 0:01:29]}  axb5 {[%clk 0:01:28]} 23. Rxa8 {[%clk 0:01:24]}  Qxa8 {[%clk 0:01:29]} 24. Qe7+ {[%clk 0:01:24]}  Kg8 {[%clk 0:01:29]} 25. h4 {[%clk 0:00:45]}  h6 {[%clk 0:01:20]} 26. Ne5 {[%clk 0:00:42]}  Nd8 {[%clk 0:01:10]} 27. d7 {[%clk 0:00:36]}  Kh7 {[%clk 0:00:47]} 28. Nxf7 {[%clk 0:00:18]}  Nxf7 {[%clk 0:00:15]} 29. Qxf7 {[%clk 0:00:19]}  Rf8 {[%clk 0:00:14]} 30. Qe7 {[%clk 0:00:19]}  Rd8 {[%clk 0:00:09]} 31. Be5 {[%clk 0:00:18]}  Rg8 {[%clk 0:00:06]} 32. h5 {[%clk 0:00:17]}  Qd5 {[%clk 0:00:05]} 33. Kh2 {[%clk 0:00:09]}  b4 {[%clk 0:00:04]} 34. f4 {[%clk 0:00:08]}  c3 {[%clk 0:00:04]} 35. bxc3 {[%clk 0:00:09]}  bxc3 {[%clk 0:00:05]} 36. Bf6 {[%clk 0:00:08]}  Qxh5+ {[%clk 0:00:04]} 37. Kg3 {[%clk 0:00:08]}  Qg6+ {[%clk 0:00:04]} 38. Kf3 {[%clk 0:00:07]}  Qxf6 {[%clk 0:00:05]} 39. Qe4+ {[%clk 0:00:07]}  Kh8 {[%clk 0:00:05]} 40. Qd5 {[%clk 0:00:07]}  Rd8 {[%clk 0:00:04]} 0-1


[Site "https://www.chess.com"]

[Event "Titled Tuesday Blitz May 03 Early 2022"]
[White "Borgaonkar Akshay"]
[Black "Melian, Juan Sebastian"]
[WhiteFideId "25639110"]
[BlackFideId "3706575"]
[WhiteElo "1624"]
[BlackElo "1842"]
[Result "0-1"]
[Round "06"]
[TimeControl "180+1"]
[Date "2022.05.03"]
[WhiteClock "0:00:34"]
[BlackClock "0:00:33"]

1. d4 {[%clk 0:03:00]}  Nf6 {[%clk 0:02:59]} 2. Bg5 {[%clk 0:03:00]}  Ne4 {[%clk 0:02:58]} 3. h4 {[%clk 0:03:00]}  d5 {[%clk 0:02:59]} 4. Nd2 {[%clk 0:02:59]}  Bf5 {[%clk 0:02:58]} 5. Ngf3 {[%clk 0:02:57]}  Nd7 {[%clk 0:02:55]} 6. e3 {[%clk 0:02:57]}  f6 {[%clk 0:02:51]} 7. Bf4 {[%clk 0:02:57]}  e6 {[%clk 0:02:51]} 8. Nxe4 {[%clk 0:02:54]}  Bxe4 {[%clk 0:02:52]} 9. Bd3 {[%clk 0:02:53]}  Bd6 {[%clk 0:02:52]} 10. Bxd6 {[%clk 0:02:48]}  cxd6 {[%clk 0:02:53]} 11. Bxe4 {[%clk 0:02:47]}  dxe4 {[%clk 0:02:53]} 12. Nd2 {[%clk 0:02:48]}  d5 {[%clk 0:02:53]} 13. f3 {[%clk 0:02:48]}  exf3 {[%clk 0:02:52]} 14. Qxf3 {[%clk 0:02:49]}  O-O {[%clk 0:02:52]} 15. h5 {[%clk 0:02:46]}  Nb6 {[%clk 0:02:41]} 16. Rh3 {[%clk 0:02:43]}  e5 {[%clk 0:02:41]} 17. Rg3 {[%clk 0:02:38]}  exd4 {[%clk 0:02:40]} 18. Qg4 {[%clk 0:02:37]}  Qe7 {[%clk 0:02:35]} 19. Qxd4 {[%clk 0:02:37]}  Rfe8 {[%clk 0:02:30]} 20. O-O-O {[%clk 0:02:36]}  Qe5 {[%clk 0:02:23]} 21. Qg4 {[%clk 0:02:33]}  Re7 {[%clk 0:02:19]} 22. Rf1 {[%clk 0:02:28]}  Rc8 {[%clk 0:02:12]} 23. Kb1 {[%clk 0:02:22]}  Qc7 {[%clk 0:02:07]} 24. c3 {[%clk 0:02:17]}  Rf8 {[%clk 0:02:01]} 25. Rgf3 {[%clk 0:02:05]}  Nd7 {[%clk 0:02:00]} 26. Nb3 {[%clk 0:02:00]}  Ne5 {[%clk 0:02:00]} 27. Qd4 {[%clk 0:01:56]}  Nxf3 {[%clk 0:01:57]} 28. Qxd5+ {[%clk 0:01:56]}  Kh8 {[%clk 0:01:57]} 29. Qxf3 {[%clk 0:01:52]}  Qe5 {[%clk 0:01:55]} 30. Re1 {[%clk 0:01:48]}  Rfe8 {[%clk 0:01:51]} 31. Ka1 {[%clk 0:01:35]}  Qg5 {[%clk 0:01:44]} 32. e4 {[%clk 0:01:29]}  f5 {[%clk 0:01:40]} 33. e5 {[%clk 0:00:58]}  Rxe5 {[%clk 0:01:36]} 34. Rxe5 {[%clk 0:00:59]}  Rxe5 {[%clk 0:01:37]} 35. a4 {[%clk 0:00:57]}  Qg4 {[%clk 0:01:02]} 36. Qxg4 {[%clk 0:00:35]}  fxg4 {[%clk 0:01:03]} 37. Nd4 {[%clk 0:00:36]}  Rxh5 {[%clk 0:01:00]} 38. b4 {[%clk 0:00:37]}  Re5 {[%clk 0:01:00]} 39. b5 {[%clk 0:00:36]}  h5 {[%clk 0:00:59]} 40. c4 {[%clk 0:00:33]}  h4 {[%clk 0:00:57]} 41. a5 {[%clk 0:00:33]}  h3 {[%clk 0:00:54]} 42. gxh3 {[%clk 0:00:33]}  gxh3 {[%clk 0:00:55]} 43. Nf3 {[%clk 0:00:34]}  Re3 {[%clk 0:00:54]} 44. Nh2 {[%clk 0:00:34]}  Re2 {[%clk 0:00:51]} 45. Nf3 {[%clk 0:00:30]}  h2 {[%clk 0:00:50]} 46. Nxh2 {[%clk 0:00:31]}  Rxh2 {[%clk 0:00:51]} 47. c5 {[%clk 0:00:32]}  Rh5 {[%clk 0:00:49]} 48. a6 {[%clk 0:00:30]}  bxa6 {[%clk 0:00:49]} 49. c6 {[%clk 0:00:30]}  Rxb5 {[%clk 0:00:48]} 50. c7 {[%clk 0:00:31]}  Rc5 {[%clk 0:00:49]} 51. c8=Q+ {[%clk 0:00:31]}  Rxc8 {[%clk 0:00:50]} 52. Kb2 {[%clk 0:00:32]}  g5 {[%clk 0:00:50]} 53. Kb3 {[%clk 0:00:33]}  g4 {[%clk 0:00:51]} 54. Ka4 {[%clk 0:00:34]}  g3 {[%clk 0:00:52]} 55. Ka5 {[%clk 0:00:35]}  g2 {[%clk 0:00:53]} 56. Kxa6 {[%clk 0:00:36]}  g1=Q {[%clk 0:00:52]} 57. Kb7 {[%clk 0:00:36]}  Qc5 {[%clk 0:00:32]} 58. Ka6 {[%clk 0:00:34]}  Qb6# {[%clk 0:00:33]} 0-1


[Site "https://www.chess.com"]

[Event "Titled Tuesday Blitz May 03 Early 2022"]
[White "Buscar, Michael"]
[Black "Nayak, Rajesh"]
[WhiteFideId "2603616"]
[BlackFideId "35017152"]
[WhiteElo "2010"]
[BlackElo "1998"]
[Result "1-0"]
[Round "06"]
[TimeControl "180+1"]
[Date "2022.05.03"]
[WhiteClock "0:00:27"]
[BlackClock "0:00:00"]

1. Nf3 {[%clk 0:02:58]}  Nf6 {[%clk 0:02:47]} 2. b3 {[%clk 0:02:57]}  g6 {[%clk 0:02:46]} 3. Bb2 {[%clk 0:02:58]}  Bg7 {[%clk 0:02:42]} 4. e4 {[%clk 0:02:58]}  d6 {[%clk 0:02:42]} 5. Bc4 {[%clk 0:02:55]}  O-O {[%clk 0:02:37]} 6. Qe2 {[%clk 0:02:55]}  Nc6 {[%clk 0:02:30]} 7. d4 {[%clk 0:02:50]}  Bg4 {[%clk 0:02:28]} 8. Nbd2 {[%clk 0:02:47]}  e5 {[%clk 0:02:27]} 9. h3 {[%clk 0:02:43]}  Bxf3 {[%clk 0:02:21]} 10. Nxf3 {[%clk 0:02:43]}  exd4 {[%clk 0:02:19]} 11. Nxd4 {[%clk 0:02:43]}  Nxe4 {[%clk 0:02:02]} 12. Nxc6 {[%clk 0:02:41]}  bxc6 {[%clk 0:02:01]} 13. Bxg7 {[%clk 0:02:40]}  Kxg7 {[%clk 0:02:01]} 14. O-O {[%clk 0:02:38]}  Re8 {[%clk 0:02:01]} 15. Rae1 {[%clk 0:02:25]}  Qf6 {[%clk 0:01:43]} 16. Bd3 {[%clk 0:01:51]}  d5 {[%clk 0:01:25]} 17. Bxe4 {[%clk 0:01:36]}  Rxe4 {[%clk 0:01:23]} 18. Qa6 {[%clk 0:01:36]}  Rae8 {[%clk 0:01:07]} 19. Rxe4 {[%clk 0:01:33]}  Rxe4 {[%clk 0:01:06]} 20. Qxa7 {[%clk 0:01:34]}  Re2 {[%clk 0:01:06]} 21. Qc5 {[%clk 0:01:27]}  Qd6 {[%clk 0:00:54]} 22. Qc3+ {[%clk 0:01:23]}  d4 {[%clk 0:00:47]} 23. Qc4 {[%clk 0:01:20]}  Rd2 {[%clk 0:00:41]} 24. a4 {[%clk 0:01:19]}  Qd5 {[%clk 0:00:30]} 25. Qxd5 {[%clk 0:01:05]}  cxd5 {[%clk 0:00:30]} 26. Rc1 {[%clk 0:01:04]}  d3 {[%clk 0:00:22]} 27. cxd3 {[%clk 0:00:54]}  Rxd3 {[%clk 0:00:21]} 28. b4 {[%clk 0:00:28]}  Rd4 {[%clk 0:00:16]} 29. Rxc7 {[%clk 0:00:25]}  Rxb4 {[%clk 0:00:15]} 30. a5 {[%clk 0:00:25]}  Ra4 {[%clk 0:00:14]} 31. Rc5 {[%clk 0:00:25]}  d4 {[%clk 0:00:15]} 32. Rd5 {[%clk 0:00:25]}  d3 {[%clk 0:00:13]} 33. Rxd3 {[%clk 0:00:22]}  Rxa5 {[%clk 0:00:13]} 34. Kh2 {[%clk 0:00:22]}  h5 {[%clk 0:00:10]} 35. h4 {[%clk 0:00:22]}  Ra4 {[%clk 0:00:09]} 36. g3 {[%clk 0:00:22]}  Ra2 {[%clk 0:00:09]} 37. Kg2 {[%clk 0:00:23]}  Rb2 {[%clk 0:00:09]} 38. Rc3 {[%clk 0:00:23]}  Ra2 {[%clk 0:00:08]} 39. Rc6 {[%clk 0:00:23]}  Rb2 {[%clk 0:00:08]} 40. Kf3 {[%clk 0:00:24]}  Ra2 {[%clk 0:00:06]} 41. Rd6 {[%clk 0:00:25]}  Rb2 {[%clk 0:00:04]} 42. Rd3 {[%clk 0:00:25]}  Ra2 {[%clk 0:00:02]} 43. Ke3 {[%clk 0:00:26]}  Rb2 {[%clk 0:00:02]} 44. f3 {[%clk 0:00:27]}  Ra2 {[%clk 0:00:00]} 45. Kf4 {[%clk 0:00:27]} 1-0


[Site "https://www.chess.com"]

[Event "Titled Tuesday Blitz May 03 Early 2022"]
[White "Cherniaiev, Tykhon"]
[Black "Baches Garcia, Guillermo"]
[WhiteFideId "14182360"]
[BlackFideId "2209764"]
[WhiteElo "2289"]
[BlackElo "2517"]
[Result "1-0"]
[Round "06"]
[TimeControl "180+1"]
[Date "2022.05.03"]
[WhiteClock "0:01:56"]
[BlackClock "0:01:17"]

1. Nf3 {[%clk 0:03:00]}  d5 {[%clk 0:02:59]} 2. c4 {[%clk 0:03:00]}  d4 {[%clk 0:02:58]} 3. b4 {[%clk 0:02:59]}  g5 {[%clk 0:02:56]} 4. Qb3 {[%clk 0:02:59]}  g4 {[%clk 0:02:52]} 5. Nxd4 {[%clk 0:02:59]}  Bg7 {[%clk 0:02:45]} 6. e3 {[%clk 0:02:56]}  e5 {[%clk 0:02:27]} 7. Nc2 {[%clk 0:02:54]}  Bf5 {[%clk 0:02:18]} 8. Bb2 {[%clk 0:02:51]}  Nd7 {[%clk 0:02:13]} 9. Be2 {[%clk 0:02:50]}  h5 {[%clk 0:02:13]} 10. Nc3 {[%clk 0:02:48]}  h4 {[%clk 0:02:12]} 11. e4 {[%clk 0:02:41]}  Be6 {[%clk 0:02:10]} 12. Ne3 {[%clk 0:02:40]}  g3 {[%clk 0:02:04]} 13. O-O-O {[%clk 0:02:21]}  Qg5 {[%clk 0:01:46]} 14. hxg3 {[%clk 0:02:07]}  hxg3 {[%clk 0:01:45]} 15. Rxh8 {[%clk 0:02:08]}  Bxh8 {[%clk 0:01:46]} 16. fxg3 {[%clk 0:02:09]}  Qxg3 {[%clk 0:01:43]} 17. Nb5 {[%clk 0:02:08]}  Rc8 {[%clk 0:01:19]} 18. Nxc7+ {[%clk 0:01:57]}  Rxc7 {[%clk 0:01:17]} 19. Nd5 {[%clk 0:01:56]} 1-0


[Site "https://www.chess.com"]

[Event "Titled Tuesday Blitz May 03 Early 2022"]
[White "Coto Mederos, Michel"]
[Black "Erdogdu, Mert"]
[WhiteFideId "3508528"]
[BlackFideId "6301495"]
[WhiteElo "2427"]
[BlackElo "2485"]
[Result "0-1"]
[Round "06"]
[TimeControl "180+1"]
[Date "2022.05.03"]
[WhiteClock "0:00:02"]
[BlackClock "0:00:40"]

1. d4 {[%clk 0:02:55]}  d5 {[%clk 0:02:59]} 2. Nf3 {[%clk 0:02:54]}  e6 {[%clk 0:03:00]} 3. Bf4 {[%clk 0:02:53]}  c5 {[%clk 0:03:00]} 4. e3 {[%clk 0:02:53]}  Nf6 {[%clk 0:03:00]} 5. Nbd2 {[%clk 0:02:51]}  Bd6 {[%clk 0:03:00]} 6. Bg3 {[%clk 0:02:50]}  O-O {[%clk 0:02:59]} 7. c3 {[%clk 0:02:50]}  Nc6 {[%clk 0:02:59]} 8. Bd3 {[%clk 0:02:50]}  b6 {[%clk 0:02:59]} 9. Ne5 {[%clk 0:02:41]}  Bb7 {[%clk 0:02:57]} 10. f4 {[%clk 0:02:29]}  Ne7 {[%clk 0:02:54]} 11. O-O {[%clk 0:02:27]}  Nf5 {[%clk 0:02:54]} 12. Bf2 {[%clk 0:02:25]}  Be7 {[%clk 0:02:55]} 13. h3 {[%clk 0:02:20]}  Nd6 {[%clk 0:02:54]} 14. Qe2 {[%clk 0:02:13]}  Nfe4 {[%clk 0:02:53]} 15. Nxe4 {[%clk 0:02:13]}  Nxe4 {[%clk 0:02:50]} 16. Bxe4 {[%clk 0:01:56]}  dxe4 {[%clk 0:02:50]} 17. Rfd1 {[%clk 0:01:57]}  Qc7 {[%clk 0:02:42]} 18. Bg3 {[%clk 0:01:43]}  f6 {[%clk 0:02:30]} 19. Ng4 {[%clk 0:01:38]}  Rad8 {[%clk 0:02:27]} 20. Kh2 {[%clk 0:01:29]}  Qc6 {[%clk 0:02:20]} 21. Rac1 {[%clk 0:01:25]}  c4 {[%clk 0:02:14]} 22. b4 {[%clk 0:01:20]}  a5 {[%clk 0:02:12]} 23. Qb2 {[%clk 0:01:13]}  axb4 {[%clk 0:02:11]} 24. cxb4 {[%clk 0:01:13]}  b5 {[%clk 0:02:12]} 25. Rd2 {[%clk 0:01:09]}  Ra8 {[%clk 0:02:10]} 26. Rcd1 {[%clk 0:01:04]}  Qd7 {[%clk 0:01:50]} 27. Qc3 {[%clk 0:00:56]}  Ra4 {[%clk 0:01:48]} 28. a3 {[%clk 0:00:56]}  Rfa8 {[%clk 0:01:47]} 29. d5 {[%clk 0:00:25]}  Rxa3 {[%clk 0:01:47]} 30. dxe6 {[%clk 0:00:23]}  Qxe6 {[%clk 0:01:45]} 31. Qd4 {[%clk 0:00:21]}  Rd3 {[%clk 0:01:43]} 32. Rxd3 {[%clk 0:00:18]}  exd3 {[%clk 0:01:43]} 33. Nf2 {[%clk 0:00:11]}  Ra2 {[%clk 0:01:33]} 34. e4 {[%clk 0:00:11]}  Bxb4 {[%clk 0:01:26]} 35. f5 {[%clk 0:00:11]}  Qc6 {[%clk 0:01:22]} 36. Qd8+ {[%clk 0:00:10]}  Bf8 {[%clk 0:01:22]} 37. Qd4 {[%clk 0:00:07]}  Re2 {[%clk 0:01:20]} 38. Ra1 {[%clk 0:00:06]}  Qc5 {[%clk 0:01:16]} 39. Qd7 {[%clk 0:00:02]}  Bc6 {[%clk 0:01:14]} 40. Qc7 {[%clk 0:00:02]}  Rxf2 {[%clk 0:00:45]} 41. Ra7 {[%clk 0:00:03]}  Rxg2+ {[%clk 0:00:43]} 42. Kxg2 {[%clk 0:00:03]}  Bxe4+ {[%clk 0:00:43]} 43. Kh2 {[%clk 0:00:04]}  Qxc7 {[%clk 0:00:43]} 44. Rxc7 {[%clk 0:00:05]}  d2 {[%clk 0:00:42]} 45. Rd7 {[%clk 0:00:05]}  Bd3 {[%clk 0:00:42]} 46. Rd8 {[%clk 0:00:05]}  Kf7 {[%clk 0:00:40]} 47. Rd7+ {[%clk 0:00:03]}  Ke8 {[%clk 0:00:40]} 48. Rxd3 {[%clk 0:00:02]}  cxd3 {[%clk 0:00:40]} 0-1


[Site "https://www.chess.com"]

[Event "Titled Tuesday Blitz May 03 Early 2022"]
[White "Csonka, Balazs"]
[Black "Eynullayev, Atilla"]
[WhiteFideId "742910"]
[BlackFideId "13413570"]
[WhiteElo "2404"]
[BlackElo "1936"]
[Result "0-1"]
[Round "06"]
[TimeControl "180+1"]
[Date "2022.05.03"]
[WhiteClock "0:00:02"]
[BlackClock "0:00:47"]

1. e4 {[%clk 0:03:00]}  c5 {[%clk 0:03:00]} 2. Nf3 {[%clk 0:03:00]}  d6 {[%clk 0:03:00]} 3. Bb5+ {[%clk 0:03:00]}  Nc6 {[%clk 0:02:59]} 4. O-O {[%clk 0:02:54]}  Bd7 {[%clk 0:02:59]} 5. Re1 {[%clk 0:02:51]}  Nf6 {[%clk 0:02:59]} 6. c3 {[%clk 0:02:50]}  a6 {[%clk 0:02:59]} 7. Bf1 {[%clk 0:02:49]}  Bg4 {[%clk 0:02:59]} 8. d4 {[%clk 0:02:46]}  cxd4 {[%clk 0:02:58]} 9. cxd4 {[%clk 0:02:45]}  e5 {[%clk 0:02:59]} 10. d5 {[%clk 0:02:40]}  Nd4 {[%clk 0:02:59]} 11. Be3 {[%clk 0:02:40]}  Nxf3+ {[%clk 0:02:59]} 12. gxf3 {[%clk 0:02:39]}  Bd7 {[%clk 0:03:00]} 13. a4 {[%clk 0:02:35]}  Be7 {[%clk 0:02:57]} 14. Qb3 {[%clk 0:02:34]}  b5 {[%clk 0:02:45]} 15. axb5 {[%clk 0:02:31]}  axb5 {[%clk 0:02:46]} 16. Rxa8 {[%clk 0:02:26]}  Qxa8 {[%clk 0:02:47]} 17. Bxb5 {[%clk 0:02:19]}  O-O {[%clk 0:02:47]} 18. Bxd7 {[%clk 0:02:17]}  Nxd7 {[%clk 0:02:48]} 19. Na3 {[%clk 0:02:14]}  f5 {[%clk 0:02:46]} 20. Nc4 {[%clk 0:01:47]}  Qe8 {[%clk 0:02:17]} 21. Qb7 {[%clk 0:00:54]}  fxe4 {[%clk 0:01:44]} 22. fxe4 {[%clk 0:00:46]}  Qg6+ {[%clk 0:01:08]} 23. Kf1 {[%clk 0:00:45]}  Qxe4 {[%clk 0:01:08]} 24. Nxd6 {[%clk 0:00:22]}  Bxd6 {[%clk 0:00:57]} 25. Qxd7 {[%clk 0:00:22]}  Bb4 {[%clk 0:00:55]} 26. Qe6+ {[%clk 0:00:04]}  Kh8 {[%clk 0:00:55]} 27. Bd2 {[%clk 0:00:02]}  Qh1+ {[%clk 0:00:46]} 28. Ke2 {[%clk 0:00:02]}  Qf3+ {[%clk 0:00:47]} 0-1


[Site "https://www.chess.com"]